[Event "SRB-chT Men 1st League 2019"]
[Site "Subotica"]
[Date "2019.08.25"]
[Round "4.5"]
[White "Nestorovic, Nikola"]
[Black "Budisavljevic, Luka"]
[Result "1/2-1/2"]
[ECO "D02"]
[WhiteElo "2468"]
[BlackElo "2359"]
[Annotator "ChessBase"]
[PlyCount "34"]
[EventDate "2019.08.23"]
[EventType "team-tourn"]
[EventCountry "SRB"]
[SourceTitle "playchess.com"]
[Source "ChessBase"]
[SourceQuality "1"]
[TimeControl "40/5400+30:1800+30"]

1. d4 {[%emt 1:30:30]} Nf6 {[%emt 1:30:30]} 2. Nf3 {[%emt 0:00:30]} e6 {[%emt 0:00:30]} 3. Nbd2 {[%emt 0:00:30]} d5 {[%emt 0:00:30]} 4. c4 {[%emt 0:00:30]} b6 {[%emt 0:00:30]} 5. g3 {[%emt 0:00:30]} Bb7 {[%emt 0:00:30]} 6. Bg2 {[%emt 0:00:30]} Be7 {[%emt 0:00:30]} 7. Qa4+ {[%emt 0:00:30]} c6 {[%emt 0:00:30]} 8. O-O {[%emt 0:00:30]} O-O {[%emt 0:00:30]} 9. Qc2 {[%emt 0:00:30]} Nbd7 {[%emt 0:00:30]} 10. e4 {[%emt 0:00:30]} dxe4 {[%emt 0:00:30]} 11. Nxe4 {[%emt 0:00:30]} c5 {[%emt 0:00:30]} 12. Nxf6+ {[%emt 0:00:30]} Nxf6 {[%emt 0:00:30]} 13. Rd1 {[%emt 0:00:30]} Qc8 {[%emt 0:00:30]} 14. Be3 {[%emt 0:00:30]} cxd4 {[%emt 0:00:30]} 15. Bxd4 {[%emt 0:00:30]} Be4 {[%emt 0:00:30]} 16. Qe2 {[%emt 0:00:30]} Qb7 {[%emt 0:00:30]} 17. Bc3 {[%emt 0:00:30]} Rfd8 {[%emt 0:00:30]} 1/2-1/2

[Event "SRB-chT Men 1st League 2019"]
[Site "Subotica"]
[Date "2019.08.25"]
[Round "4.6"]
[White "Besedes, Danilo"]
[Black "Ostojic, Nikola"]
[Result "1/2-1/2"]
[ECO "A30"]
[WhiteElo "2249"]
[BlackElo "2432"]
[Annotator "ChessBase"]
[PlyCount "27"]
[EventDate "2019.08.23"]
[EventType "team-tourn"]
[EventCountry "SRB"]
[SourceTitle "playchess.com"]
[Source "ChessBase"]
[SourceQuality "1"]
[TimeControl "40/5400+30:1800+30"]

1. Nf3 {[%emt 0:00:12]} c5 {[%emt 0:00:23]} 2. c4 {[%emt 0:00:18]} Nc6 {[%emt 0:00:22]} 3. b3 {[%emt 0:01:17]} Nf6 {[%emt 0:03:40]} 4. Bb2 {[%emt 0:00:12]} e6 {[%emt 0:01:39]} 5. e3 {[%emt 0:00:34]} Be7 {[%emt 0:00:18]} 6. Nc3 {[%emt 0:03:27]} O-O {[%emt 0:00:14]} 7. Be2 {[%emt 0:02:32]} b6 {[%emt 0:01:26]} 8. O-O {[%emt 0:00:20]} Bb7 {[%emt 0:00:08]} 9. d4 {[%emt 0:00:17]} cxd4 {[%emt 0:03:39]} 10. Nxd4 {[%emt 0:01:59]} Qb8 {[%emt 0:03:46]} 11. Nxc6 {[%emt 0:02:50]} Bxc6 {[%emt 0:01:00]} 12. Bf3 {[%emt 0:00:09]} Rd8 {[%emt 0:02:09]} 13. Bxc6 {[%emt 0:01:12]} dxc6 {[%emt 0:00:04]} 14. Qe2 {[%emt 0:00:08]} 1/2-1/2

[Event "SRB-chT Men 1st League 2019"]
[Site "Subotica"]
[Date "2019.08.25"]
[Round "4.9"]
[White "Miladinovic, Igor"]
[Black "Vratonjic, Slobo"]
[Result "1-0"]
[ECO "A45"]
[WhiteElo "2532"]
[BlackElo "2388"]
[Annotator "ChessBase"]
[PlyCount "84"]
[EventDate "2019.08.23"]
[EventType "team-tourn"]
[EventCountry "SRB"]
[SourceTitle "playchess.com"]
[Source "ChessBase"]
[SourceQuality "1"]
[TimeControl "40/5400+30:1800+30"]

1. d4 {[%emt 0:02:18]} Nf6 {[%emt 0:00:00]} 2. Bg5 {[%emt 0:00:13]} Ne4 {[%emt 0:00:17]} 3. Bf4 {[%emt 0:00:07]} c5 {[%emt 0:01:04]} 4. f3 {[%emt 0:00:12]} Qa5+ {[%emt 0:00:17]} 5. c3 {[%emt 0:00:08]} Nf6 {[%emt 0:00:16]} 6. Nd2 {[%emt 0:01:40]} cxd4 {[%emt 0:00:15]} 7. Nb3 {[%emt 0:00:12]} Qd8 {[%emt 0:00:22]} 8. cxd4 {[%emt 0:03:08]} d5 {[%emt 0:00:13]} 9. e3 {[%emt 0:00:45]} Nc6 {[%emt 0:00:12]} 10. Rc1 {[%emt 0:01:21]} e6 {[%emt 0:02:54]} 11. g4 {[%emt 0:03:26]} Bb4+ {[%emt 0:04:38]} 12. Kf2 {[%emt 0:07:14]} O-O {[%emt 0:00:52]} 13. Bb5 {[%emt 0:02:12]} Bd7 {[%emt 0:14:12]} 14. a3 {[%emt 0:06:21]} Be7 {[%emt 0:00:47]} 15. Nc5 {[%emt 0:07:47]} Bxc5 {[%emt 0:06:59]} 16. Rxc5 {[%emt 0:05:42]} Re8 {[%emt 0:03:13]} 17. Ne2 {[%emt 0:03:05]} e5 {[%emt 0:03:43]} 18. dxe5 {[%emt 0:01:07]} Nxe5 {[%emt 0:00:15]} 19. Bxe5 {[%emt 0:03:46]} Rxe5 {[%emt 0:02:14]} 20. Qd4 {[%emt 0:00:15]} b6 {[%emt 0:10:21]} 21. Qxe5 {[%emt 0:05:32]} bxc5 {[%emt 0:00:14]} 22. Bxd7 {[%emt 0:01:42]} Qxd7 {[%emt 0:00:16]} 23. Rd1 {[%emt 0:02:49]} Re8 {[%emt 0:12:40]} 24. Qf4 {[%emt 0:01:52]} Qe6 {[%emt 0:08:30]} 25. Rd2 {[%emt 0:04:14]} h6 {[%emt 0:01:27]} 26. h4 {[%emt 0:00:25]} h5 {[%emt 0:05:02]} 27. g5 {[%emt 0:03:36]} d4 {[%emt 0:00:26]} 28. e4 {[%emt 0:02:43]} Nd7 {[%emt 0:00:18]} 29. b4 {[%emt 0:04:27]} Ne5 {[%emt 0:04:38]} 30. bxc5 {[%emt 0:00:52]} Qc4 {[%emt 0:01:07]} 31. Rxd4 {[%emt 0:07:54]} Qxd4+ {[%emt 0:06:13]} 32. Nxd4 {[%emt 0:00:02]} Nd3+ {[%emt 0:00:09]} 33. Ke3 {[%emt 0:00:03]} Nxf4 {[%emt 0:00:07]} 34. Kxf4 {[%emt 0:00:01]} Rd8 {[%emt 0:00:26]} 35. Ke3 {[%emt 0:03:41]} Rc8 {[%emt 0:01:27]} 36. c6 {[%emt 0:02:44]} Kf8 {[%emt 0:00:18]} 37. e5 {[%emt 0:01:12]} g6 {[%emt 0:01:29]} 38. Ke4 {[%emt 0:00:22]} Ke7 {[%emt 0:06:43]} 39. Kd5 {[%emt 0:00:14]} a6 {[%emt 0:00:21]} 40. f4 {[%emt 0:00:00]} Rc7 {[%emt 0:00:00]} 41. a4 {[%emt 0:02:27]} Rc8 {[%emt 0:03:47]} 42. a5 {[%emt 0:01:56]} Ra8 {[%emt 0:01:47]} 1-0

[Event "SRB-chT Men 1st League 2019"]
[Site "Subotica"]
[Date "2019.08.25"]
[Round "4.10"]
[White "Radovic, Janko"]
[Black "Miljkovic, Miroslav D"]
[Result "1/2-1/2"]
[ECO "B30"]
[WhiteElo "2430"]
[BlackElo "2483"]
[Annotator "ChessBase"]
[PlyCount "68"]
[EventDate "2019.08.23"]
[EventType "team-tourn"]
[EventCountry "SRB"]
[SourceTitle "playchess.com"]
[Source "ChessBase"]
[SourceQuality "1"]
[TimeControl "40/5400+30:1800+30"]

1. e4 {[%emt 0:00:00]} c5 {[%emt 0:00:00]} 2. Nf3 {[%emt 0:00:00]} Nc6 {[%emt 0:00:00]} 3. Bb5 {[%emt 0:00:00]} e5 {[%emt 0:00:22]} 4. O-O {[%emt 0:02:22]} Bd6 {[%emt 0:00:34]} 5. b4 {[%emt 0:14:05]} cxb4 {[%emt 0:21:13]} 6. a3 {[%emt 0:02:51]} bxa3 {[%emt 0:11:36]} 7. d4 {[%emt 0:20:31]} exd4 {[%emt 0:02:46]} 8. c3 {[%emt 0:04:20]} Nge7 {[%emt 0:11:33]} 9. cxd4 {[%emt 0:02:05]} O-O {[%emt 0:03:50]} 10. e5 {[%emt 0:17:11]} Bb8 {[%emt 0:00:08]} 11. Bxa3 {[%emt 0:05:14]} d5 {[%emt 0:01:30]} 12. Nc3 {[%emt 0:03:01]} Bg4 {[%emt 0:08:11]} 13. Bxc6 {[%emt 0:01:12]} bxc6 {[%emt 0:00:54]} 14. h3 {[%emt 0:01:20]} Bd7 {[%emt 0:10:56]} 15. Na4 {[%emt 0:03:10]} Bc7 {[%emt 0:02:01]} 16. Re1 {[%emt 0:04:06]} Re8 {[%emt 0:03:06]} 17. Nc5 {[%emt 0:03:03]} Ng6 {[%emt 0:01:58]} 18. Qa4 {[%emt 0:03:46]} Nf4 {[%emt 0:01:52]} 19. Rac1 {[%emt 0:01:42]} Rb8 {[%emt 0:04:16]} 20. Nxd7 {[%emt 0:01:29]} Qxd7 {[%emt 0:00:03]} 21. Qxc6 {[%emt 0:00:06]} Qxc6 {[%emt 0:00:38]} 22. Rxc6 {[%emt 0:00:04]} Ba5 {[%emt 0:00:03]} 23. Re3 {[%emt 0:00:58]} Rec8 {[%emt 0:01:28]} 24. Rxc8+ {[%emt 0:00:42]} Rxc8 {[%emt 0:00:01]} 25. Bc5 {[%emt 0:00:08]} Bb6 {[%emt 0:03:38]} 26. Bxb6 {[%emt 0:00:34]} axb6 {[%emt 0:00:09]} 27. Rb3 {[%emt 0:00:04]} Rc6 {[%emt 0:01:49]} 28. g3 {[%emt 0:01:04]} Ne6 {[%emt 0:01:58]} 29. Kf1 {[%emt 0:01:19]} h6 {[%emt 0:03:19]} 30. Ke2 {[%emt 0:00:33]} Kf8 {[%emt 0:01:41]} 31. Ke3 {[%emt 0:03:04]} Nc7 {[%emt 0:00:21]} 32. Ne1 {[%emt 0:01:00]} Ke7 {[%emt 0:01:34]} 33. Nd3 {[%emt 0:00:12]} Kd7 {[%emt 0:00:47]} 34. f4 {[%emt 0:02:07]} g6 {[%emt 0:02:45] Ke4} 1/2-1/2

[Event "SRB-chT Men 1st League 2019"]
[Site "Subotica"]
[Date "2019.08.25"]
[Round "4.11"]
[White "Lazic, Miroljub"]
[Black "Simonovic, Aleksandar"]
[Result "1/2-1/2"]
[ECO "A11"]
[WhiteElo "2387"]
[BlackElo "2357"]
[Annotator "NA"]
[PlyCount "40"]
[EventDate "2019.08.23"]
[EventType "team-tourn"]
[EventCountry "SRB"]
[SourceTitle "playchess.com"]
[Source "ChessBase"]
[SourceQuality "1"]
[TimeControl "40/5400+30:1800+30"]

1. g3 {[%emt 0:00:00]} Nf6 {[%emt 0:03:30]} 2. Bg2 {[%emt 0:00:00]} d5 {[%emt 0:01:06]} 3. Nf3 {[%emt 0:00:21]} g6 {[%emt 0:00:33]} 4. c4 {[%emt 0:00:43]} c6 {[%emt 0:00:07]} 5. b3 {[%emt 0:00:10]} Bg7 {[%emt 0:00:11]} 6. Bb2 {[%emt 0:00:02]} O-O {[%emt 0:00:46]} 7. d3 {[%emt 0:00:33]} Nbd7 {[%emt 0:03:31]} 8. Nbd2 {[%emt 0:17:05]} Re8 {[%emt 0:01:33]} 9. O-O {[%emt 0:04:25]} e5 {[%emt 0:05:09]} 10. cxd5 {[%emt 0:00:45]} cxd5 {[%emt 0:02:37]} 11. e4 {[%emt 0:01:02]} dxe4 {[%emt 0:11:45]} 12. Nxe4 {[%emt 0:12:44]} Nxe4 {[%emt 0:09:26]} 13. dxe4 {[%emt 0:01:14]} Qe7 {[%emt 0:03:20]} 14. Nd2 {[%emt 0:20:10]} Nb6 {[%emt 0:09:56]} 15. Qe2 {[%emt 0:06:01]} Bd7 {[%emt 0:01:30]} 16. Rfd1 {[%emt 0:01:08]} Bc6 {[%emt 0:03:22]} 17. Nf1 {[%emt 0:00:30]} Rad8 {[%emt 0:04:37]} 18. Ne3 {[%emt 0:01:29]} Rxd1+ {[%emt 0:02:31]} 19. Rxd1 {[%emt 0:00:09]} Rd8 {[%emt 0:00:35]} 20. Rxd8+ {[%emt 0:04:10]} Qxd8 {[%emt 0:33:55]} 1/2-1/2

[Event "SRB-chT Men 1st League 2019"]
[Site "Subotica"]
[Date "2019.08.25"]
[Round "4.12"]
[White "Radovic, Luka"]
[Black "Laketic, Gojko"]
[Result "1-0"]
[ECO "A09"]
[WhiteElo "2328"]
[BlackElo "2376"]
[Annotator "NA"]
[PlyCount "130"]
[EventDate "2019.08.23"]
[EventType "team-tourn"]
[EventCountry "SRB"]
[SourceTitle "playchess.com"]
[Source "ChessBase"]
[SourceQuality "1"]
[TimeControl "40/5400+30:1800+30"]

1. Nf3 {[%emt 0:00:00]} d5 {[%emt 0:00:46]} 2. c4 {[%emt 0:00:48]} d4 {[%emt 0:00:36]} 3. g3 {[%emt 0:01:09]} g6 {[%emt 0:07:22]} 4. Bg2 {[%emt 0:00:32]} Bg7 {[%emt 0:00:02]} 5. O-O {[%emt 0:00:36]} c5 {[%emt 0:05:07]} 6. e3 {[%emt 0:03:23]} Nc6 {[%emt 0:04:03]} 7. d3 {[%emt 0:00:58]} dxe3 {[%emt 0:02:34]} 8. fxe3 {[%emt 0:06:20]} Nh6 {[%emt 0:01:22]} 9. Nc3 {[%emt 0:05:13]} O-O {[%emt 0:04:59]} 10. Qe2 {[%emt 0:02:20]} Bg4 {[%emt 0:23:59]} 11. h3 {[%emt 0:15:25]} Bxf3 {[%emt 0:02:30]} 12. Bxf3 {[%emt 0:00:15]} Nf5 {[%emt 0:00:03]} 13. Kg2 {[%emt 0:07:28]} Qc7 {[%emt 0:08:58]} 14. Qf2 {[%emt 0:02:35]} Ne5 {[%emt 0:00:24]} 15. Nd5 {[%emt 0:02:06]} Qd8 {[%emt 0:05:51]} 16. Be2 {[%emt 0:01:51]} e6 {[%emt 0:00:58]} 17. Nf4 {[%emt 0:02:36]} Rc8 {[%emt 0:08:18]} 18. Rd1 {[%emt 0:02:03]} a6 {[%emt 0:11:19]} 19. Rb1 {[%emt 0:06:08]} b5 {[%emt 0:00:45]} 20. b3 {[%emt 0:00:34]} bxc4 {[%emt 0:02:10]} 21. bxc4 {[%emt 0:01:39]} Qa5 {[%emt 0:00:11]} 22. Bd2 {[%emt 0:10:06]} Qa4 {[%emt 0:00:28]} 23. Bc3 {[%emt 0:03:12]} Nxc4 {[%emt 0:01:37]} 24. dxc4 {[%emt 0:01:18]} Bxc3 {[%emt 0:00:13]} 25. g4 {[%emt 0:00:01]} Ne7 {[%emt 0:01:18]} 26. Rb7 {[%emt 0:00:30]} Nc6 {[%emt 0:01:05]} 27. Rdd7 {[%emt 0:00:53]} Ne5 {[%emt 0:00:53]} 28. Re7 {[%emt 0:00:02]} Rfe8 {[%emt 0:01:59]} 29. Nxg6 {[%emt 0:02:50]} Qc6+ {[%emt 0:02:23]} 30. Kg1 {[%emt 0:01:29]} Qxb7 {[%emt 0:02:11]} 31. Rxb7 {[%emt 0:01:18]} hxg6 {[%emt 0:00:09]} 32. Rb3 {[%emt 0:01:03]} Bb4 {[%emt 0:00:49]} 33. a3 {[%emt 0:00:11]} Ba5 {[%emt 0:00:13]} 34. Qf6 {[%emt 0:01:34]} Nd7 {[%emt 0:00:33]} 35. Qg5 {[%emt 0:00:58]} Bd8 {[%emt 0:00:44]} 36. Qf4 {[%emt 0:00:57]} Bc7 {[%emt 0:00:23]} 37. Qe4 {[%emt 0:00:39]} Ne5 {[%emt 0:00:44]} 38. Rb7 {[%emt 0:01:03]} Bd6 {[%emt 0:00:19]} 39. Rb6 {[%emt 0:00:58]} Bc7 {[%emt 0:00:01]} 40. Rxa6 {[%emt 0:00:00]} Rb8 {[%emt 0:00:00]} 41. Ra7 {[%emt 0:01:51]} Bd6 {[%emt 0:01:04]} 42. a4 {[%emt 0:11:19]} Kg7 {[%emt 0:02:41]} 43. Rb7 {[%emt 0:01:16]} Rbc8 {[%emt 0:16:28]} 44. Bd1 {[%emt 0:03:49]} Rh8 {[%emt 0:00:20]} 45. Kg2 {[%emt 0:00:27]} g5 {[%emt 0:01:02]} 46. a5 {[%emt 0:04:23]} Rc6 {[%emt 0:03:06]} 47. Rb5 {[%emt 0:11:25]} Kf6 {[%emt 0:00:18]} 48. Bf3 {[%emt 0:00:27]} Rd8 {[%emt 0:03:18]} 49. Qb1 {[%emt 0:07:12]} Rc7 {[%emt 0:01:06]} 50. Bb7 {[%emt 0:01:05]} Rcd7 {[%emt 0:05:28]} 51. Rb2 {[%emt 0:01:04]} Bb8 {[%emt 0:01:06]} 52. Rf2+ {[%emt 0:00:52]} Ke7 {[%emt 0:00:51]} 53. a6 {[%emt 0:01:43]} Ng6 {[%emt 0:00:48]} 54. Ra2 {[%emt 0:02:51]} Rd1 {[%emt 0:00:32]} 55. Qb6 {[%emt 0:00:33]} Nh4+ {[%emt 0:01:03]} 56. Kf2 {[%emt 0:00:06]} R1d2+ {[%emt 0:00:00]} 57. Rxd2 {[%emt 0:00:09]} Rxd2+ {[%emt 0:00:06]} 58. Ke1 {[%emt 0:00:15]} Ra2 {[%emt 0:00:05]} 59. Qxc5+ {[%emt 0:00:06]} Kf6 {[%emt 0:00:10]} 60. Qd4+ {[%emt 0:00:39]} Ke7 {[%emt 0:00:49]} 61. Kd1 {[%emt 0:01:07]} Ng6 {[%emt 0:00:35]} 62. Be4 {[%emt 0:00:40]} Ne5 {[%emt 0:01:05]} 63. Qb6 {[%emt 0:00:45]} Nd7 {[%emt 0:00:34]} 64. Qb7 {[%emt 0:00:23]} Kd6 {[%emt 0:00:22]} 65. c5+ {[%emt 0:00:24]} Kxc5 {[%emt 0:01:14]} 1-0

[Event "SRB-chT Men 1st League 2019"]
[Site "Subotica"]
[Date "2019.08.26"]
[Round "5.2"]
[White "Perunovic, Milos"]
[Black "Radovanovic, Mihajlo"]
[Result "1-0"]
[ECO "B96"]
[WhiteElo "2569"]
[BlackElo "2496"]
[Annotator "ChessBase"]
[PlyCount "51"]
[EventDate "2019.08.23"]
[EventType "team-tourn"]
[EventCountry "SRB"]
[SourceTitle "playchess.com"]
[Source "ChessBase"]
[SourceQuality "1"]
[TimeControl "40/5400+30:1800+30"]

1. e4 {[%emt 0:00:00]} c5 {[%emt 0:00:00]} 2. Nf3 {[%emt 0:00:18]} d6 {[%emt 0:00:00]} 3. d4 {[%emt 0:00:49]} cxd4 {[%emt 0:00:00]} 4. Nxd4 {[%emt 0:00:11]} Nf6 {[%emt 0:00:00]} 5. Nc3 {[%emt 0:00:17]} a6 {[%emt 0:00:05]} 6. Bg5 {[%emt 0:01:41]} e6 {[%emt 0:00:43]} 7. f4 {[%emt 0:00:24]} h6 {[%emt 0:00:27]} 8. Bh4 {[%emt 0:00:16]} Qb6 {[%emt 0:00:07]} 9. Qd2 {[%emt 0:06:12]} Qxb2 {[%emt 0:00:43]} 10. Rb1 {[%emt 0:00:07]} Qa3 {[%emt 0:00:04]} 11. Bxf6 {[%emt 0:00:09]} gxf6 {[%emt 0:00:11]} 12. Be2 {[%emt 0:00:05]} h5 {[%emt 0:01:23]} 13. O-O {[%emt 0:00:21]} Nd7 {[%emt 0:18:08]} 14. Kh1 {[%emt 0:03:46]} Qc5 {[%emt 0:01:46]} 15. Na4 {[%emt 0:16:45]} Qc7 {[%emt 0:02:29]} 16. c4 {[%emt 0:12:03]} h4 {[%emt 0:11:05]} 17. f5 {[%emt 0:04:53]} Bh6 {[%emt 0:05:50]} 18. Qd1 {[%emt 0:11:43]} e5 {[%emt 0:09:45]} 19. Ne6 {[%emt 0:12:36]} Qc6 {[%emt 0:10:59]} 20. Nc3 {[%emt 0:01:59]} Nc5 {[%emt 0:07:44]} 21. Bh5 {[%emt 0:09:23]} Nxe6 {[%emt 0:10:13]} 22. fxe6 {[%emt 0:00:50]} Bxe6 {[%emt 0:00:05]} 23. Rxf6 {[%emt 0:00:30]} Kf8 {[%emt 0:11:25]} 24. Nd5 {[%emt 0:03:16]} Re8 {[%emt 0:01:11]} 25. Bxf7 {[%emt 0:03:58]} Bxf7 {[%emt 0:00:22]} 26. Qh5 {[%emt 0:03:24]} 1-0

[Event "SRB-chT Men 1st League 2019"]
[Site "Subotica"]
[Date "2019.08.26"]
[Round "5.3"]
[White "Vuckovic, Bojan"]
[Black "Damljanovic, Branko"]
[Result "1-0"]
[ECO "B81"]
[WhiteElo "2581"]
[BlackElo "2483"]
[Annotator "ChessBase"]
[PlyCount "90"]
[EventDate "2019.08.23"]
[EventType "team-tourn"]
[EventCountry "SRB"]
[SourceTitle "playchess.com"]
[Source "ChessBase"]
[SourceQuality "1"]
[TimeControl "40/5400+30:1800+30"]

1. e4 {[%emt 0:00:00]} c5 {[%emt 0:00:20]} 2. Nf3 {[%emt 0:00:33]} d6 {[%emt 0:01:53]} 3. d4 {[%emt 0:00:16]} cxd4 {[%emt 0:00:07]} 4. Nxd4 {[%emt 0:00:05]} Nf6 {[%emt 0:00:08]} 5. Nc3 {[%emt 0:00:04]} a6 {[%emt 0:00:08]} 6. Be3 {[%emt 0:03:23]} e6 {[%emt 0:11:43]} 7. g4 {[%emt 0:02:34]} d5 {[%emt 0:01:34]} 8. e5 {[%emt 0:20:02]} Nfd7 {[%emt 0:05:49]} 9. f4 {[%emt 0:00:16]} Nc6 {[%emt 0:00:05]} 10. Qf3 {[%emt 0:02:03]} Bb4 {[%emt 0:05:11]} 11. Bd3 {[%emt 0:04:01]} Bc5 {[%emt 0:38:11]} 12. Nce2 {[%emt 0:12:12]} Bb4+ {[%emt 0:07:08]} 13. Kf2 {[%emt 0:05:46]} Be7 {[%emt 0:01:10]} 14. h4 {[%emt 0:03:46]} Nc5 {[%emt 0:01:45]} 15. h5 {[%emt 0:16:12]} Bd7 {[%emt 0:02:29]} 16. g5 {[%emt 0:02:59]} Qb6 {[%emt 0:09:54]} 17. g6 {[%emt 0:03:00]} fxg6 {[%emt 0:03:24]} 18. hxg6 {[%emt 0:04:57]} h6 {[%emt 0:00:02]} 19. Kg3 {[%emt 0:01:15]} Rf8 {[%emt 0:03:05]} 20. Nxc6 {[%emt 0:03:31]} bxc6 {[%emt 0:03:14]} 21. a3 {[%emt 0:05:22]} Qc7 {[%emt 0:00:07]} 22. b4 {[%emt 0:00:22]} Na4 {[%emt 0:00:06]} 23. c4 {[%emt 0:02:59]} Nb2 {[%emt 0:00:11]} 24. Bd4 {[%emt 0:00:23]} Nxd3 {[%emt 0:00:45]} 25. Qxd3 {[%emt 0:00:11]} a5 {[%emt 0:00:04]} 26. Bc5 {[%emt 0:02:15]} Bxc5 {[%emt 0:03:16]} 27. bxc5 {[%emt 0:00:06]} Rb8 {[%emt 0:00:13]} 28. Rab1 {[%emt 0:00:39]} Ke7 {[%emt 0:00:03]} 29. Rxb8 {[%emt 0:02:40]} Rxb8 {[%emt 0:00:15]} 30. Rb1 {[%emt 0:00:51]} Qa7 {[%emt 0:01:16]} 31. cxd5 {[%emt 0:00:48]} exd5 {[%emt 0:01:16]} 32. Rxb8 {[%emt 0:00:52]} Qxb8 {[%emt 0:00:01]} 33. Nd4 {[%emt 0:00:14]} Qb2 {[%emt 0:00:25]} 34. e6 {[%emt 0:01:20]} Be8 {[%emt 0:00:07]} 35. Nf5+ {[%emt 0:00:57]} Kf6 {[%emt 0:00:12]} 36. Nd6 {[%emt 0:00:33]} Bxg6 {[%emt 0:00:19]} 37. Qe3 {[%emt 0:00:18]} Ke7 {[%emt 0:01:14]} 38. Nc8+ {[%emt 0:00:24]} Kd8 {[%emt 0:00:04]} 39. e7+ {[%emt 0:00:19]} Kd7 {[%emt 0:00:43]} 40. f5 {[%emt 0:00:00]} Bf7 {[%emt 0:00:00]} 41. Nd6 {[%emt 0:02:38]} Qb8 {[%emt 0:04:17]} 42. e8=Q+ {[%emt 0:03:07]} Bxe8 {[%emt 0:00:01]} 43. Qe6+ {[%emt 0:00:10]} Kc7 {[%emt 0:00:01]} 44. Qxe8 {[%emt 0:01:21]} Qb3+ {[%emt 0:02:33]} 45. Kf4 {[%emt 0:00:09]} Qa4+ {[%emt 0:27:41] Ke4} 1-0

[Event "SRB-chT Men 1st League 2019"]
[Site "Subotica"]
[Date "2019.08.26"]
[Round "5.4"]
[White "Tadic, Branko"]
[Black "Roganovic, Milos"]
[Result "1/2-1/2"]
[ECO "A11"]
[WhiteElo "2488"]
[BlackElo "2505"]
[Annotator "ChessBase"]
[PlyCount "42"]
[EventDate "2019.08.23"]
[EventType "team-tourn"]
[EventCountry "SRB"]
[SourceTitle "playchess.com"]
[Source "ChessBase"]
[SourceQuality "1"]
[TimeControl "40/5400+30:1800+30"]

1. Nf3 {[%emt 0:03:16]} Nf6 {[%emt 0:00:00]} 2. c4 {[%emt 0:00:22]} g6 {[%emt 0:00:13]} 3. b3 {[%emt 0:00:09]} Bg7 {[%emt 0:05:23]} 4. Bb2 {[%emt 0:00:07]} O-O {[%emt 0:02:54]} 5. g3 {[%emt 0:00:04]} c6 {[%emt 0:07:55]} 6. Bg2 {[%emt 0:00:16]} d5 {[%emt 0:00:09]} 7. O-O {[%emt 0:00:21]} Nbd7 {[%emt 0:03:18]} 8. Nc3 {[%emt 0:04:13]} e5 {[%emt 0:08:39]} 9. cxd5 {[%emt 0:05:56]} Nxd5 {[%emt 0:02:54]} 10. Qc2 {[%emt 0:03:30]} Re8 {[%emt 0:04:33]} 11. d3 {[%emt 0:11:11]} Nxc3 {[%emt 0:06:06]} 12. Bxc3 {[%emt 0:05:41]} Nb6 {[%emt 0:01:14]} 13. Rac1 {[%emt 0:04:49]} Qe7 {[%emt 0:02:11]} 14. Nd2 {[%emt 0:04:28]} Bf5 {[%emt 0:09:23]} 15. Ne4 {[%emt 0:04:43]} Rad8 {[%emt 0:00:52]} 16. Bb2 {[%emt 0:02:19]} Bc8 {[%emt 0:01:33]} 17. a3 {[%emt 0:16:54]} f5 {[%emt 0:04:19]} 18. Nc5 {[%emt 0:00:07]} Nd7 {[%emt 0:00:34]} 19. Na4 {[%emt 0:05:33]} Nb6 {[%emt 0:00:31]} 20. Nc5 {[%emt 0:04:30]} Nd7 {[%emt 0:00:05]} 21. Na4 {[%emt 0:03:43]} Nb6 {[%emt 0:00:13]} 1/2-1/2

[Event "SRB-chT Men 1st League 2019"]
[Site "Subotica"]
[Date "2019.08.26"]
[Round "5.5"]
[White "Zajic, Milan"]
[Black "Nestorovic, Nikola"]
[Result "0-1"]
[ECO "B32"]
[WhiteElo "2497"]
[BlackElo "2468"]
[Annotator "ChessBase"]
[PlyCount "64"]
[EventDate "2019.08.23"]
[EventType "team-tourn"]
[EventCountry "SRB"]
[SourceTitle "playchess.com"]
[Source "ChessBase"]
[SourceQuality "1"]
[TimeControl "40/5400+30:1800+30"]

1. e4 {[%emt 0:02:30]} c5 {[%emt 0:00:00]} 2. Nf3 {[%emt 0:01:05]} Nc6 {[%emt 0:00:00]} 3. d4 {[%emt 0:03:30]} cxd4 {[%emt 0:00:00]} 4. Nxd4 {[%emt 0:00:02]} e5 {[%emt 0:00:01]} 5. Nb5 {[%emt 0:00:06]} d6 {[%emt 0:00:04]} 6. c4 {[%emt 0:00:36]} Be7 {[%emt 0:00:08]} 7. N1c3 {[%emt 0:00:19]} a6 {[%emt 0:00:09]} 8. Na3 {[%emt 0:00:02]} f5 {[%emt 0:00:11]} 9. exf5 {[%emt 0:00:01]} Bxf5 {[%emt 0:00:08]} 10. Bd3 {[%emt 0:00:04]} Be6 {[%emt 0:00:13]} 11. O-O {[%emt 0:00:18]} Nf6 {[%emt 0:00:09]} 12. Bg5 {[%emt 0:02:35]} O-O {[%emt 0:02:30]} 13. Nc2 {[%emt 0:09:43]} Qd7 {[%emt 0:00:08]} 14. Qd2 {[%emt 0:07:12]} Nh5 {[%emt 0:00:14]} 15. Bxe7 {[%emt 0:03:52]} Qxe7 {[%emt 0:00:05]} 16. Nd5 {[%emt 0:03:27]} Qf7 {[%emt 0:02:08]} 17. Rad1 {[%emt 0:15:24]} Rad8 {[%emt 0:19:48]} 18. Be4 {[%emt 0:03:50]} Nf6 {[%emt 0:10:44]} 19. Nxf6+ {[%emt 0:03:36]} gxf6 {[%emt 0:01:41]} 20. b3 {[%emt 0:02:25]} f5 {[%emt 0:01:17]} 21. Bxc6 {[%emt 0:08:28]} bxc6 {[%emt 0:00:05]} 22. Qc3 {[%emt 0:07:28]} f4 {[%emt 0:12:04]} 23. c5 {[%emt 0:08:42]} dxc5 {[%emt 0:15:36]} 24. Qxc5 {[%emt 0:02:49]} Qg6 {[%emt 0:04:34]} 25. f3 {[%emt 0:07:38]} e4 {[%emt 0:16:20]} 26. fxe4 {[%emt 0:02:48]} f3 {[%emt 0:04:05]} 27. Qf2 {[%emt 0:02:22]} Rxd1 {[%emt 0:05:48]} 28. Rxd1 {[%emt 0:00:02]} Qxe4 {[%emt 0:00:32]} 29. Re1 {[%emt 0:02:23]} Qg6 {[%emt 0:00:36]} 30. Nb4 {[%emt 0:01:03]} Bh3 {[%emt 0:01:26]} 31. Nxc6 {[%emt 0:00:15]} Qxg2+ {[%emt 0:00:17]} 32. Qxg2+ {[%emt 0:00:07]} fxg2 {[%emt 0:00:08]} 0-1